Cogmind - Beta 16 @@@ ROGUE MODE // 2026.01.09 @ 04:27:14 Player: AngelSpirit Result: Destroyed by Vortex Trap Performance ------------- Evolutions (4) 2000 Regions Visited (5) 1000 Robots Destroyed (87) 435 Value Destroyed (2750) 2750 Prototype IDs (26) 520 Alien Tech Used (0) 0 Bonus (1072) 1072 TOTAL SCORE: 7777 Bonus ------- High Alert Combat Kills 272 Registered with UFD 300 Met Optimus in HQ 500 Cogmind --------- Core Integrity 0/850 Matter 250/300 Energy 239/240 System Corruption 15% Temperature Cool (2) Movement Hovering (56) Location -6/Factory Parts ------- > --- POWER (1) -------- Nuclear Core > --- PROPULSION (4) --- Gravmag Array Gravmag Array > --- UTILITY (7) ------ Medium Storage Unit Improved Sensor Array Improved Signal Interpreter Advanced Melee Analysis Suite Core Analyzer Layered Medium Armor Plating (fused) Hacking Suite > --- WEAPON (3) ------- Hypervelocity Gauss Rifle Hypervelocity Gauss Rifle > --- INVENTORY (10) --- Gravmag Array Matter Compressor (223) Improved Sensor Array A0-MCA's Component Scanner Hypervelocity Gauss Rifle CPS Tube (2) Heavy Mace DRS Beacon (Ready) Peak State ------------ > --- POWER ------------ Light Angular Momentum Engine > --- PROPULSION ------- Gravmag Array Gravmag Array > --- UTILITY ---------- Medium Storage Unit Improved Sensor Array Improved Signal Interpreter Advanced Melee Analysis Suite Core Analyzer Core Analyzer Cloaking Device > --- WEAPON ----------- Mini Assault Cannon Mini Assault Cannon Great Maul > --- INVENTORY -------- Airjet Matter Compressor Improved Sensor Array Authchip [Propulsion] A0-MCA's Component Scanner Long-range Missile Launcher CPS Tube Vortex Trap Vortex Trap DRS Beacon [Rating: 67] Favorites ----------- Power Ion Engine Engine Ion Engine Power Core Nuclear Core Propulsion Compact Wheel Wheel Compact Wheel Hover Unit Gravmag Array Utility Huge Storage Unit Device Improved Sensor Array Storage Huge Storage Unit Processor Improved Signal Interpreter Hackware Hacking Suite Protection Medium Armor Plating Weapon Subdweller Beam Cannon Energy Cannon Subdweller Beam Cannon Ballistic Gun Subdweller Machine Gun Ballistic Cannon Slug Cannon Launcher Grenade Launcher Impact Weapon Great Maul Slashing Weapon Segregator Special Melee Weapon Datajack Build | -11 -10 -10 -9 -9 -6 ------- Run | Yrd Mat Sub Rec Scr Fac Slots Evolved 8 | . . . . . 8 Power . | . . . . . . Propulsion 2 | . . . . . 2 Utility 5 | . . . . . 5 Weapon 1 | . . . . . 1 Parts Attached 110 | 6 9 23 3 8 61 Power 14 | 1 . 4 1 1 7 Engine 10 | 1 . 4 1 1 3 Core 4 | . . . . . 4 Reactor . | . . . . . . Propulsion 25 | 2 2 4 1 3 13 Treads . | . . . . . . Leg . | . . . . . . Wheel 14 | 2 2 4 1 3 2 Hover 11 | . . . . . 11 Flight . | . . . . . . Utility 43 | 1 5 4 1 2 30 Device 13 | . 1 2 . . 10 Storage 6 | 1 3 . . 1 1 Processor 11 | . 1 . . . 10 Hackware 3 | . . . . . 3 Protection 10 | . . 2 1 1 6 Artifact . | . . . . . . Weapon 28 | 2 2 11 . 2 11 Energy Gun . | . . . . . . Energy Cannon 6 | . 1 2 . 1 2 Ballistic Gun 11 | 2 1 4 . 1 3 Ballistic Cannon 4 | . . 2 . . 2 Launcher 3 | . . 2 . . 1 Special Weapon . | . . . . . . Impact Weapon 2 | . . . . . 2 Slashing Weapon 1 | . . . . . 1 Piercing Weapon . | . . . . . . Special Melee Weapon 1 | . . 1 . . . Unidentified Prototypes 3 | . . . . . 3 Parts Lost 29 | . . 5 . . 24 Power 4 | . . 1 . . 3 Propulsion 10 | . . 2 . . 8 Utility 10 | . . 1 . . 9 Weapon 5 | . . 1 . . 4 Highest Loss Streak 12 | . . 2 . . 12 To Critical Strikes . | . . . . . . Average Backups 15 | . 8 15 21 21 10 Power 1 | . . 1 2 . . Propulsion 2 | . . 3 3 1 1 Utility 7 | . 4 6 8 12 5 Weapon 3 | . 1 3 4 4 1 Tool/Special . | . . . . . . Unused Backups 36 | . . . 2 14 20 Power 4 | . . . . 2 2 Propulsion 4 | . . . . 2 2 Utility 17 | . . . 1 7 9 Weapon 5 | . . . 1 2 2 Tool/Special 6 | . . . . 1 5 Average Slot Usage (%) 89 | . 96 89 99 87 83 Engine 10 | . 14 11 14 14 2 Wheel 21 | . 28 25 27 28 5 Hover 2 | . . . . . 9 Device 5 | . 8 11 . . 7 Storage 11 | . 14 11 14 14 6 Processor 4 | . 2 . . . 17 Hackware 1 | . . . . . 5 Protection 7 | . . 2 14 14 5 Energy Cannon 5 | . 6 9 14 1 2 Ballistic Gun 6 | . 21 9 . . 4 Ballistic Cannon 3 | . . 4 14 . 3 Impact Weapon 1 | . . . . . 6 Special Melee Weapon 3 | . . . . 13 . Peak Build Rating 67 | 6 8 41 18 22 67 Average Rating 27 | 4 7 19 15 16 56 On Entrance 11 | . 6 8 18 17 20 Avg Prop Armor Cover (%) . | . . . . . . Naked Turns . | . . . . . . Heaviest Build 146 | 12 91 146 104 106 124 Greatest Support 56 | 26 32 56 32 32 44 Greatest Overweight (x) 8 | . 3 5 3 4 8 Average Overweight (x) 2 | . 1 2 3 3 . Largest Inventory Capacity 25 | 8 25 25 25 25 25 Average Capacity 21 | 6 19 24 25 24 14 Most Carried 25 | . 15 22 24 25 25 Average Carried 17 | . 8 16 22 23 14 Final Capacity 25 | 8 25 25 25 25 10 Final Carried 25 | . 15 22 22 25 9 Class Distribution -------------------- 58% | Mutant 20% | Scavenger-Mutant 8% | Gladiator 4% | Scavenger-Skirmisher Dominant Class ---------------- Mutant | -10/Materials Mutant | -10/Subcaves Scavenger-Mutant | -9/Recycling Mutant | -9/Scraptown Gladiator | -6/Factory Resources | -11 -10 -10 -9 -9 -6 ----------- Run | Yrd Mat Sub Rec Scr Fac Matter Collected 3798 | 260 304 866 241 272 1855 Remotely . | . . . . . . Salvage Created 3302 | . 606 473 60 . 2163 Parts 154 | . 34 41 4 . 75 Haulers Intercepted 2 | . 1 . . . 1 Recyclers Shooed 3 | . 1 . . . 2 Parts Field Recycled . | . . . . . . Retrieved Matter . | . . . . . . Parts Self-Destructed 7 | . . 7 . . . Prevented . | . . . . . . Parts Restored . | . . . . . . Kills | -11 -10 -10 -9 -9 -6 ------- Run | Yrd Mat Sub Rec Scr Fac Combat Hostiles Destroyed 52 | . 6 17 1 . 28 Melee 5 | . . . . . 5 Guns 10 | . 6 1 . . 3 Cannons 20 | . . 9 1 . 10 AOE 13 | . . 7 . . 6 Classes Destroyed 15 | . 8 2 1 . 4 Worker 5 | . 1 . . . 4 Builder 6 | . 2 . . . 4 Tunneler 2 | . 1 . . . 1 Hauler 2 | . 1 . . . 1 Recycler 8 | . 3 . . . 5 Mechanic 1 | . . . . . 1 Operator 2 | . . . . . 2 Turret 2 | . . 2 . . . Watcher 7 | . 2 . . . 5 Swarmer 12 | . 3 7 . . 2 Grunt 21 | . 3 . . . 18 Sentry 2 | . . . 1 . 1 Hunter 1 | . . . . . 1 Programmer 6 | . . . . . 6 Subdweller 10 | . . 10 . . . Best Kill Streak 9 | . 4 6 1 . 9 Combat Bots Only 6 | . 2 4 1 . 6 Max Kills in Single Turn 4 | . 1 4 1 . 3 Gunslinging . | . . . . . . Exploded 4 | . . 4 . . 2 Melee 1 | . . . . . 1 Uniques/NPCs Destroyed . | . . . . . . Combat | -11 -10 -10 -9 -9 -6 -------- Run | Yrd Mat Sub Rec Scr Fac Hostile Shots Fired 476 | . 25 96 2 . 353 Missed 142 | . 5 40 . . 97 Hits 334 | . 20 56 2 . 256 Melee 6 | . . . . . 6 Projectile 328 | . 20 56 2 . 250 AOE 7 | . . 4 . . 3 Critical Strikes 14 | . 1 1 . . 12 Part Disruptions 1 | . . . . . 1 Damage Taken 5844 | . 214 914 30 . 4686 Core 1122 | . 36 180 16 . 890 Absorbed by Shields . | . . . . . . Ignored by Resistances 87 | . . . . . 87 Regen/Repaired (Parts) 341 | . . . . . 341 Core Remaining (%) 53 | 100 . . . 7 . Volleys Fired 252 | . 70 88 6 . 88 Largest 4 | . 2 4 2 . 3 Hottest 203 | . 80 203 120 . 158 Shots Fired 459 | . 140 144 8 . 167 Gun 223 | . 105 70 . . 48 Cannon 215 | . 35 62 8 . 110 Launcher 21 | . . 12 . . 9 Special . | . . . . . . Kinetic 321 | . 105 108 2 . 106 Thermal 125 | . 35 32 6 . 52 Explosive 13 | . . 4 . . 9 Electromagnetic . | . . . . . . Robot Hit Streak 15 | . 11 15 2 . 8 Robot Miss Streak 4 | . 3 4 1 . 3 Penetration Max 1 | . . . . . 1 Secondary Targets 1 | . 1 . . . . Max Gunslinging Chain 1 | . 1 . . . . Shots Hit Robots 306 | . 87 56 2 15 146 Core Hits 128 | . 29 32 1 . 66 Critical Kills 4 | . . . . . 4 Critical Parts Destroyed 10 | . 1 . . . 9 Critical Strikes 18 | . 1 1 . . 16 Meltdown 1 | . . . . . 1 Destroy 2 | . 1 1 . . . Blast 3 | . . . . . 3 Smash 12 | . . . . . 12 Melee Attacks 133 | . . . . 15 118 Thermal 4 | . . . . . 4 Impact 114 | . . . . . 114 Slashing . | . . . . . . Piercing . | . . . . . . Sneak Attacks 23 | . . . . 14 9 Combat Hostiles . | . . . . . . Follow-up Attacks 3 | . . . . . 3 Damage Inflicted 9609 | . 990 1905 57 . 6657 Guns 1865 | . 624 492 . . 749 Cannons 2920 | . 330 654 57 . 1879 Explosions 2347 | . 36 759 . . 1552 Melee 2477 | . . . . . 2477 Ramming . | . . . . . . Kinetic 3660 | . 624 1342 . . 1694 Thermal 1763 | . 330 442 57 . 934 Explosive 1597 | . . 121 . . 1476 Electromagnetic 112 | . 36 . . . 76 Impact 2477 | . . . . . 2477 Slashing . | . . . . . . Piercing . | . . . . . . Highest Corruption 15 | . . . . . 15 Average Corruption 8 | . . . . . 8 Corruption Purged . | . . . . . . Corruption Blocked . | . . . . . . Effects 66 | . . . . . 66 Message Errors 9 | . . . . . 9 Matter Fused 22 | . . . . . 22 Heat Flow Errors 8 | . . . . . 8 Energy Discharges 8 | . . . . . 8 Parts Rejected 3 | . . . . . 3 Parts Fused 3 | . . . . . 3 Data Loss (minor) 6 | . . . . . 6 Data Loss (major) 1 | . . . . . 1 Misfires 3 | . . . . . 3 Misdirections 2 | . . . . . 2 Weapon Failures 1 | . . . . . 1 Overload Shots . | . . . . . . Overflow Damage 1149 | . . 32 . . 1117 Projectiles 62 | . . 24 . . 38 Explosions 88 | . . 8 . . 80 Melee 999 | . . . . . 999 Knockbacks 18 | . . 1 . . 17 Impact 7 | . . . . . 7 Kinetic 10 | . . 1 . . 9 Secondary 1 | . . . . . 1 Self-Inflicted Damage 81 | . . . . . 81 Shots 2 | . . . . . 2 Rammed . | . . . . . . Targets Rammed . | . . . . . . Kicked . | . . . . . . Crushed . | . . . . . . Highest Temperature 348 | . 126 210 159 . 348 Average Temperature 70 | . 39 74 75 . 85 Received Heat Transfer 1507 | . 93 150 9 . 1255 Effects 2 | . . . . . 2 Interference 1 | . . . . . 1 Matter Decay 1 | . . . . . 1 Siege Activations . | . . . . . . Martial Activations . | . . . . . . Shielding Activations . | . . . . . . Robots Disrupted . | . . . . . . Combat Hostiles . | . . . . . . Robots Corrupted 7 | . . . . . 7 Combat Hostiles 4 | . . . . . 4 Parts Fried 17 | . . . . . 17 Impact Corruptions 34 | . . . . . 34 Robots Melted 1 | . . . . . 1 Combat Hostiles . | . . . . . . Parts Melted 4 | . . 2 . . 2 Heat Transferred 2805 | . 703 740 74 . 1288 Parts Sabotaged 3 | . . . . . 3 Parts Stolen . | . . . . . . Parts Stripped . | . . . . . . Power Chain Reactions . | . . . . . . Alert | -11 -10 -10 -9 -9 -6 ------- Run | Yrd Mat Sub Rec Scr Fac Maximum Alert Level 3 | . . . . . 3 Low Security (%) 57 | 100 100 . 100 . 24 Level 1 9 | . . . . . 17 Level 2 11 | . . . . . 21 Level 3 20 | . . . . . 37 Level 4 . | . . . . . . Level 5 . | . . . . . . High Security . | . . . . . . Max Security . | . . . . . . Peak Influence 951 | . 77 . 105 . 951 Initial 83 | . . . 83 . . Average 293 | . 18 . 39 . 506 Influence Increases 2537 | . 260 250 250 . 1777 Destroy 0b10 Robot/C 880 | . 120 180 20 . 560 Destroy 0b10 Robot/NC 165 | . 50 . . . 115 Destroy Leader 178 | . 26 10 . . 142 Trap Triggered on 0b10 20 | . . . . . 20 Successful Hack 53 | . 19 . 14 . 20 Select Force Hacks 210 | . . . 210 . . Disable Machine 180 | . 30 . . . 150 Anti-Garrison Action 150 | . . . . . 150 Destroy Structure 146 | . . . 6 . 140 Partial Spotted 30 | . . . . . 30 Lose Combat Pursuer 525 | . 15 60 . . 450 Influence Decreases 1578 | . 253 83 401 23 818 Entered New Map 118 | . . 4 91 23 . Time Decay 1230 | . 253 79 310 . 588 Lost Part 230 | . . . . . 230 Squads Dispatched 24 | . . . . . 24 Investigation 11 | . . . . . 11 Extermination 5 | . . . . . 5 Reinforcement 5 | . . . . . 5 Assault 2 | . . . . . 2 Garrison 1 | . . . . . 1 Intercept . | . . . . . . Searches Triggered . | . . . . . . Construction Impeded 2 | . . . . . 2 Haulers Reinforced . | . . . . . . Active Scanning Responses . | . . . . . . Cargo Convoy Interrupts . | . . . . . . Stealth | -11 -10 -10 -9 -9 -6 --------- Run | Yrd Mat Sub Rec Scr Fac Distress Signals 5 | . 2 . . . 3 Communications Jammed . | . . . . . . Distress Signals . | . . . . . . Times Spotted 113 | . 16 17 1 . 79 Peak Tracking Total 11 | . 5 6 1 . 11 Tactical Retreats 14 | . 1 1 . . 12 Traps | -11 -10 -10 -9 -9 -6 ------- Run | Yrd Mat Sub Rec Scr Fac Traps Triggered 3 | . 1 . . . 2 Indirectly . | . . . . . . Trap Hack Attempts 51 | . . 51 . . . Triggered . | . . . . . . Disarmed 1 | . . 1 . . . Reprogrammed 4 | . . 4 . . . Reused 2 | . . . . . 2 Traps Extracted . | . . . . . . Installed 2 | . . . . . 2 Triggered 2 | . . . . . 2 Most Traps Carried 2 | . . 1 1 2 2 Machines | -11 -10 -10 -9 -9 -6 ---------- Run | Yrd Mat Sub Rec Scr Fac Machines Disabled 18 | . 2 5 . . 11 Max in Single Turn 4 | . 2 4 . . 4 Garrison Access 2 | . . . . . 2 Machines Repaired . | . . . . . . Machines Dismantled . | . . . . . . Machines Sabotaged . | . . . . . . Overloaded Fab Kills . | . . . . . . Hacking | -11 -10 -10 -9 -9 -6 --------- Run | Yrd Mat Sub Rec Scr Fac Machines Accessed 40 | . 6 2 13 3 16 Terminals 18 | . 6 . 5 . 7 Fabricators . | . . . . . . Repair Stations 2 | . . . . . 2 Recycling Units 13 | . . . 8 . 5 Scanalyzers 1 | . . . . . 1 Garrison Access 1 | . . . . . 1 Total Hacks 120 | . 18 5 40 9 48 Successful 72 | . 11 5 22 9 25 Failed 47 | . 7 . 18 . 22 Catastrophic 4 | . . . 1 . 3 Database Lockouts 1 | . . . . . 1 Manual 64 | . 14 . 27 . 23 Terminals 56 | . 18 . 17 . 21 Fabricators . | . . . . . . Repair Stations 6 | . . . . . 6 Recycling Units 38 | . . . 23 . 15 Scanalyzers 5 | . . . . . 5 Garrison Access 1 | . . . . . 1 Terminal Hacks 27 | . 6 5 4 9 3 Record 12 | . . 4 . 8 . Robot Analysis 5 | . 2 . 2 . 1 Branch Access Points 1 | . . . . . 1 Locate Traps 2 | . 2 . . . . Hauler Manifests 2 | . 1 . . . 1 Registered Components 1 | . 1 . . . . Zone Layout 2 | . . . 2 . . Proto ID Catalog 2 | . . 1 . 1 . Fabricator Hacks . | . . . . . . Repair Station Hacks 2 | . . . . . 2 Scan Component 1 | . . . . . 1 Repair 1 | . . . . . 1 Recycling Unit Hacks 12 | . . . 7 . 5 Retrieve Components 12 | . . . 7 . 5 Scanalyzer 4 | . . . . . 4 Insert Component 1 | . . . . . 1 Retrieve Study 3 | . . . . . 3 Garrison Access Hacks 1 | . . . . . 1 Seal Access 1 | . . . . . 1 Unauthorized Hacks 26 | . 5 . 11 . 10 Terminals 13 | . 5 . 4 . 4 Botnet 12 | . 4 . 4 . 4 Operators 1 | . 1 . . . . Fabricators . | . . . . . . Repair Stations 2 | . . . . . 2 Patch 2 | . . . . . 2 Recycling Units 11 | . . . 7 . 4 Tunnel 7 | . . . 7 . . Fedlink 3 | . . . . . 3 Scrapoids 1 | . . . . . 1 Scanalyzers . | . . . . . . Garrison Access . | . . . . . . Data Cores Recovered 1 | . . . . . 1 Used 1 | . . . . . 1 Hacking Detections 27 | . 6 . 10 . 11 Full Trace Events 7 | . 1 . 2 . 4 Feedback Events . | . . . . . . Feedback Blocked . | . . . . . . Robot Schematics Acquired . | . . . . . . Robots Built . | . . . . . . Authchips . | . . . . . . Time . | . . . . . . Total Robot Build Rating . | . . . . . . Part Schematics Acquired . | . . . . . . Parts Built . | . . . . . . Authchips . | . . . . . . Time . | . . . . . . Total Part Build Rating . | . . . . . . Part Studies Acquired 3 | . . . . . 3 Parts Repaired 1 | . . . . . 1 Time 19 | . . . . . 19 Parts Recycled . | . . . . . . Recycled Matter . | . . . . . . Retrieved Matter . | . . . . . . Retrieved Components 33 | . . . 17 . 16 Parts Scanalyzed . | . . . . . . Part Schematics Acquired . | . . . . . . Parts Damaged . | . . . . . . Bothacking | -11 -10 -10 -9 -9 -6 ------------ Run | Yrd Mat Sub Rec Scr Fac Used RIF Installer . | . . . . . . Robots Hacked 14 | . . . . 14 . Non-combat 6 | . . . . 6 . Combat 8 | . . . . 8 . Robot Hacks Applied 14 | . . . . 14 . parse_system 14 | . . . . 14 . Relay Couplers Released 2 | . . . . . 2 Machine Destruction 2 | . . . . . 2 Fabnet Peak Effective % . | . . . . . . Robots Rewired . | . . . . . . Allies Hacked . | . . . . . . Hacks Repelled . | . . . . . . Allies | -11 -10 -10 -9 -9 -6 -------- Run | Yrd Mat Sub Rec Scr Fac Total Allies . | . . . . . . Largest Group . | . . . . . . Highest-Rated Group . | . . . . . . Highest-Rated Ally . | . . . . . . Total Orders . | . . . . . . Ally Attacks . | . . . . . . Total Damage . | . . . . . . Kills . | . . . . . . Allies Corrupted . | . . . . . . Allies Melted . | . . . . . . Intel | -11 -10 -10 -9 -9 -6 ------- Run | Yrd Mat Sub Rec Scr Fac Active Infowar (turns) 5171 | . 702 2386 . . 2083 Optics 79 | . . . . . 79 Sensors 3375 | . . 1292 . . 2083 Seismic 1642 | . 548 1094 . . . T.N.C. 154 | . 154 . . . . Cloaking 141 | . . . . . 141 Robot Analysis Total 5 | . 2 . 2 . 1 Derelict Logs Recovered 5 | . . . . 5 . Drone Launches . | . . . . . . Drone Recoveries . | . . . . . . Exploration | -11 -10 -10 -9 -9 -6 ------------- Run | Yrd Mat Sub Rec Scr Fac Turns Passed 9125 | 38 883 2481 1052 2225 2446 Spaces Moved 5886 | 33 525 1194 740 1454 1940 Core 1 | 1 . . . . . Treads . | . . . . . . Legs . | . . . . . . Wheels 4296 | 32 525 1194 740 1454 351 Hover 1589 | . . . . . 1589 Flight . | . . . . . . Fastest Speed 48 | 50 90 90 131 125 48 Average Speed 112 | 88 113 135 132 141 70 Slowest Speed 210 | 90 135 165 136 145 210 Overloaded Moves . | . . . . . . Propulsion Burnouts . | . . . . . . Robots Hopped . | . . . . . . Potential Cave-ins . | . . . . . . Cave-ins Triggered . | . . . . . . Exploration Rate (%) 62 | 3 73 69 94 91 45 Regions Visited 5 Branch Regions 3 Pre-discovered Areas 10 | . . . 7 2 1 Known Exits Taken . | . . . . . . Unknown Exits Taken 5 | 1 1 1 1 1 . Scrap Searched 8 | . . 3 . 5 . Spaces Dug 53 | . . . 4 . 49 Terrain Destroyed 267 | . . 121 6 . 140 Melee 47 | . . . . . 47 Projectile 37 | . . 13 6 . 18 AOE 183 | . . 108 . . 75 Terrain Rammed . | . . . . . . Walls Destroyed . | . . . . . . Machines Disabled . | . . . . . . Actions | -11 -10 -10 -9 -9 -6 --------- Run | Yrd Mat Sub Rec Scr Fac Total 7728 | 38 682 1909 807 1623 2669 Wait 1049 | . 55 494 45 82 373 Move 5881 | 32 524 1193 739 1453 1940 Hop . | . . . . . . Pick Up 106 | . 15 31 6 28 26 Fast Attach 65 | 6 5 7 1 2 44 Attach 34 | . 1 10 . 2 21 Detach 7 | . 1 3 . . 3 Swap 54 | . 4 21 2 11 16 Drop 108 | . 7 11 8 30 52 Fire 252 | . 70 88 6 . 88 Melee 119 | . . . . 15 104 Ram . | . . . . . . Kick . | . . . . . . Crush . | . . . . . . Escape Stasis . | . . . . . . Rewire . | . . . . . . Trap 53 | . . 51 . . 2 Miscellaneous . | . . . . . . Route ------- -11/Scrapyard -10/Materials (discovered 4 exits: [*Mat x2] / [*Min] / *Sub) -10/Subcaves (discovered 4 exits: [*Mat x2] / *Rec / *Scr) -9/Recycling (discovered 2 exits: [*Fac] / *Scr) -9/Scraptown (discovered 2 exits: *Fac x2) -6/Factory (discovered 4 exits: *Fac x2 / Low x2) History --------- Turn | Location | Event 13 | -11/Scrapyard | Discovered new exit (range 14) 39 | -11/Scrapyard | Entered Materials 142 | -10/Materials | Discovered new exit (range 14) 319 | -10/Materials | Build established: Mutant 495 | -10/Materials | Discovered new exit (range 16) 551 | -10/Materials | Discovered new exit (range 7) 583 | -10/Materials | Discovered new exit (range 5) 922 | -10/Materials | Entered Subcaves 923 | -10/Subcaves | Approached by a straggling Scientist 1051 | -10/Subcaves | Discovered new exit (range 6) 1506 | -10/Subcaves | Build established: Scavenger-Mutant 1876 | -10/Subcaves | Core integrity fell below 50% 2258 | -10/Subcaves | Visited 4L-MR0's lab 2282 | -10/Subcaves | Found Tower Shield 2283 | -10/Subcaves | Attached Tower Shield, gained temporary slots: Power, Propulsion x2, Utility x2, Weapon x2 2308 | -10/Subcaves | Build established: Mutant 2927 | -10/Subcaves | Visited Clippyterm 2930 | -10/Subcaves | Learned Factory stockpile data 3045 | -10/Subcaves | Build established: Scavenger-Skirmisher 3267 | -10/Subcaves | Shifting Twisted Machinery released Flamer 3271 | -10/Subcaves | Discovered new exit (range 8) 3361 | -10/Subcaves | Core integrity fell below 20% 3379 | -10/Subcaves | Discovered new exit (range 16) 3403 | -10/Subcaves | Entered Recycling 3404 | -9/Recycling | Met a Zionite searching for Scraptown 3422 | -9/Recycling | Build established: Mutant 3730 | -9/Recycling | Build established: Scavenger-Mutant 3760 | -9/Recycling | Scanned before Scraplab entrance 3780 | -9/Recycling | Entered Scraplab 3791 | -9/Recycling | Discovered new exit (range 3) 4338 | -9/Recycling | Discovered new exit (range 11) 4455 | -9/Recycling | Entered Scraptown 4477 | -9/Scraptown | Build established: Mutant 4714 | -9/Scraptown | Scanned Subdweller tech in exchange for log data 4717 | -9/Scraptown | Learned location of 1 exit from Factory 4718 | -9/Scraptown | Learned location of Armory (-3) 4719 | -9/Scraptown | Learned Factory terminal intel 4722 | -9/Scraptown | Learned Research machine intel 4782 | -9/Scraptown | Discovered new exit (range 13) 4874 | -9/Scraptown | Visited Fellowship of the Rings 4892 | -9/Scraptown | Visited Shadow of the Wyrm 4914 | -9/Scraptown | Visited Assassins FH 5243 | -9/Scraptown | Visited IN-MT5's Study 5285 | -9/Scraptown | Visited Junk Repository 5336 | -9/Scraptown | Visited Red Mages 5405 | -9/Scraptown | Visited UFD Registry 5405 | -9/Scraptown | Registered with UFD as "Electrochaser" 5455 | -9/Scraptown | Visited A0-MCA Data Center 5468 | -9/Scraptown | Given a B+ rating by A0-MCA 5472 | -9/Scraptown | Found A0-MCA's Component Scanner 5532 | -9/Scraptown | Visited Derelict Rescue Squad 5542 | -9/Scraptown | Found DRS Beacon 5574 | -9/Scraptown | Visited Junk Repository 5630 | -9/Scraptown | Visited Scrapoid Research Area 5663 | -9/Scraptown | Visited Abandonware Association 5676 | -9/Scraptown | Learned abandonware demo "OVRCLOCK.EXE" 5681 | -9/Scraptown | Learned abandonware demo "HACKBUD.EXE" 5681 | -9/Scraptown | Learned abandonware demo "MELTYB.EXE" 5713 | -9/Scraptown | Received an X-ray algorithm 5734 | -9/Scraptown | Visited Research Penetration Think Tank 5766 | -9/Scraptown | Visited Science Guys 6090 | -9/Scraptown | Visited LU-1G1's Boring Crew 6120 | -9/Scraptown | Visited Chapter 10 6163 | -9/Scraptown | Visited DA-N13 Charitable Foundation 6171 | -9/Scraptown | Found DCF Scrap (29 items) 6606 | -9/Scraptown | Met Optimus 6606 | -9/Scraptown | Accepted into 0bPrime 6676 | -9/Scraptown | Discovered new exit (range 3) 6680 | -9/Scraptown | Entered Factory 6680 | -6/Factory | Evolved 8 slots: Propulsion x2, Utility x5, Weapon x1 6681 | -6/Factory | Identified exit to Factory 6683 | -6/Factory | Loaded intel: 26 terminal locations 6808 | -6/Factory | Loaded intel: 8 recycling unit locations 7101 | -6/Factory | Repaired Great Maul? 7178 | -6/Factory | Garrison activated, responded to threat 7452 | -6/Factory | Core integrity fell below 50% 7486 | -6/Factory | Lost 12 parts (1p3n7u1w) 7802 | -6/Factory | Lost 6 parts (1p2n2u1w) 7926 | -6/Factory | Discovered exit to Factory (range 8) 7933 | -6/Factory | Learned location of Protoforge (-3) 8097 | -6/Factory | Identified exit to Lower Caves 8119 | -6/Factory | System corruption reached 10% 8437 | -6/Factory | Spotted B-75 Beast 8476 | -6/Factory | Build established: Gladiator 8765 | -6/Factory | Central database locked down 8961 | -6/Factory | Core integrity fell below 20% 9126 | -6/Factory | Destroyed by Vortex Trap Last Messages --------------- dispatching Cutter reinforcements to area. 09054_ R-10 Processor collects Lyr. Medium Armor Plating. 09055_ U-05 Engineer builds a Wall. 09069_ System corrupted: Energy discharge (-52). 09088_ System corrupted: Component data lost. 09095_ U-05 Engineer builds a Wall. 09121_ U-05 Engineer destroyed. 09121_ Knocked back. 09122_ Lrn. Missile Launcher+ destroyed. 09122_ Destroyed Lrn. Missile Launcher+. 09123_ U-05 Engineer lays Concrete. 09123_ Knocked back. 09124_ Dropped Vortex Trap. 09125_ Installed Vortex Trap. 09126_ The unstable cave ceiling collapses. 09126_ C-17 Slicer triggered Vortex Trap. 09126_ A wave of accelerated entropy washes over the area. 09126_ C-17 Slicer destroyed. Map ----- +----------------------------------------------------+ | ????????"""" #??????????####????## # | | ??????" """" "" #??????????################### | | ?? """" """" !Y" #???????????# """" # | | # !"" #???????????# ""R" + | | # #???????????# "" " ! # | | ??###############"##??????????# # | | ????????????????##"####"####### """""" """""" # | | ?????????????????## ]## """""" """""" # | | ??????????????????# ## """""" """""" # | | ??????????????????# "# """""" """""" # | | ??????????????????# "# " | | ??????????????????# k "################# | | ?????????????????## # m #?###??????#### | | ?????????????????## u#u #??????????# | | ????????????##???## u """#??????????# | | ##############???## # """#??"""""???# "" | | #???### u """#??""T""???# "" | | """ !#???# # s u #??????????# "" | | """ [! #???# # s """#??????????# | | """ ! #??## # ! """#??????????# | | ! #### # " """#??????????# | | ############ # s " #??????????#### | | ?#T ######### # s#########+########?????????? | | ^ = % c ????????? | | !! c ????????? | | ]^] | =@k p ????????? | | ]] = ###;###########????????????? | | """ ### !?????????????????????????? | | """ #?# !?????????????????????????? | | """ #?# !!????????????????????????? | | #?# * ???????????????????????? | | #?#! ] ???????????????????"""T | | #?# ??????????????????????? | | #?# ?????????????????????? | | ? ?+ """"""" #????????????????????? | | ?###???+######?# """"""" #????????????????????? | | ???????????????# ?????????????????????????????? | | ???????????????# ?????????????????????????????? | | ????????????????? ?????????????????????????????? | | ?????????????????????????????????????????????????? | | ?????????????????????????????????????????????????? | | ?????????????????????????????????????????????????? | | ?????????????????????????????????????????????????? | | ?????????????????????????????????????????????????? | | ?????????????????????????????????????????????????? | | ?????????????????????????????????????????????????? | | ?????????????????????????????????????????????????? | | ?????????????????????????????????????????????????? | | ?????????????????????????????????????????"???????? | | ?????????????????????????????????????????"T??????? | +----------------------------------------------------+ Best States ------------- Heat Dissipation 64 Energy Generation 18 Energy Capacity 900 Matter Stores 300 Matter Capacity 300 Sight Range 22 Robot Scan Range 15 Terrain Scan Density 10 Cloak Strength 2 Additional Mass Support 9 Armor Coverage 2000 Resistance: EM 15 Melee Speed Boost 20 Evasion (%) 55 Targeting Accuracy 5 Melee Accuracy 8 Core Analysis 9 Offensive Hacking 10 Defensive Hacking 12 Authchip Count 3 Item Schematics ----------------- None Robot Schematics ------------------ None Fabricated ------------ Nothing Repaired ---------- Great Maul | 37% | -6/Factory Studied --------- Gravmag Array | -6/Factory | Hacked Lrn. Missile Launcher | -6/Factory | Hacked Hyp. Gauss Rifle | -6/Factory | Hacked Alien Tech Used ----------------- None Achievements -------------- None Challenges ------------ None Game ------ Seed MissileWeaponTearclaws Manual? 0 Play Time 01:34:53 Cumulative 399.1 hours Start 2026.01.09 @ 02:50:05 End 2026.01.09 @ 04:27:14 Sessions 1 Manual Loads 0 Difficulty Rogue Special Mode None Game No. 138 Rogue 138 Adventurer 0 Explorer 0 Win Type - Total 10 Types 5/0/1/1/0/0/0/1/0/2 Lore% 84 Gallery% 80 Achievement% 70 Wizard Run 0 Options --------- Layout 1 ASCII 0 Keyboard 0 Movement Mouse Keybinds 0 Fullscreen 2 Font 32/SmallcapsGlow Map View 50x35 Zoom Use 0% Tactical HUD 1 Map Filters NONE Filters NONE Steam 1 RUN: 554e5e0a-237b-490f-8fac-c631b6e27f72